Workbook

Sheet BSAI Gfish Harvest Specs AP-SSC
A1: Table 1. Plan Team Proposed recommended OFL, ABC for Groundfish in the Bering Sea/Aleutian Islands (metric tons) for 2022-2023
C3: 2020 | F3: Catch as of | G3: 2021 | J3: Catch as of | K3: Plan Team Final 2022 | N3: Plan Team Final 2023
A4: Species | B4: Area | C4: OFL | D4: ABC | E4: TAC | F4: 2020-12-31 | G4: OFL | H4: ABC | I4: TAC | J4: 2021-11-06 | K4: OFL | L4: ABC | M4: TAC | N4: OFL | O4: ABC | P4: TAC
A5: Pollock | B5: EBS | C5: 4,085,000 | D5: 2,043,000 | E5: 1,425,000 | F5: 1,367,223 | G5: 2,594,000 | H5: 1,626,000 | I5: 1,375,000 | J5: 1,373,712 | K5: 1,469,000 | L5: 1,111,000 | N5: 1,704,000 | O5: 1,289,000
B6: AI | C6: 66,973 | D6: 55,120 | E6: 19,000 | F6: 3,205 | G6: 61,856 | H6: 51,241 | I6: 19,000 | J6: 1,635 | K6: 61,264 | L6: 50,752 | N6: 61,379 | O6: 50,825
B7: Bogoslof | C7: 183,080 | D7: 137,310 | E7: 75 | F7: 9 | G7: 113,479 | H7: 85,109 | I7: 250 | J7: 50 | K7: 113,479 | L7: 85,109 | N7: 113,479 | O7: 85,109
A8: Pacific cod | B8: BS | C8: 191,386 | D8: 155,873 | E8: 141,799 | F8: 141,484 | G8: 147,949 | H8: 123,805 | I8: 111,380 | J8: 105,537 | K8: 183,012 | L8: 153,383 | N8: 180,909 | O8: 151,709
B9: AI | C9: 27,400 | D9: 20,600 | E9: 13,796 | F9: 7,474 | G9: 27,400 | H9: 20,600 | I9: 13,796 | J9: 7,023 | K9: 27,400 | L9: 20,600 | N9: 27,400 | O9: 20,600
B10: BSAI/GOA | C10: 50,481 | G10: 60,426 | H10: 29,558 | K10: 40,432 | L10: 34,521 | N10: 42,520 | O10: 36,318
A11: Sablefish | B11: BS | C11: n/a | D11: 2,174 | E11: 1,861 | F11: 5,301 | G11: n/a | H11: 3,396 | I11: 3,396 | J11: 3,961 | L11: 5,264 | O11: 6,529
B12: AI | C12: n/a | D12: 2,952 | E12: 2,039 | F12: 1,210 | G12: n/a | H12: 4,717 | I12: 4,717 | J12: 1,425 | L12: 6,463 | O12: 7,786
A13: Yellowfin sole | B13: BSAI | C13: 287,307 | D13: 260,918 | E13: 150,700 | F13: 133,799 | G13: 341,571 | H13: 313,477 | I13: 200,000 | J13: 104,669 | K13: 377,071 | L13: 269,649 | N13: 382,035 | O13: 274,787
A14: Greenland turbot | B14: BSAI | C14: 11,319 | D14: 9,625 | E14: 5,300 | F14: =SUM(F15:F16) -> 2,326 | G14: 8,568 | H14: 7,326 | I14: 6,025 | J14: 1,586 | K14: 7,687 | L14: 6,572 | N14: 6,698 | O14: 5,724
B15: BS | C15: n/a | D15: 8,403 | E15: 5,125 | F15: 1,648 | G15: n/a | H15: 6,176 | I15: 5,125 | J15: 1,129 | L15: 5,540 | O15: 4,825
B16: AI | C16: n/a | D16: 1,222 | E16: 175 | F16: 678 | G16: n/a | H16: 1,150 | I16: 900 | J16: 457 | L16: 1,032 | O16: 899
A17: Arrowtooth flounder | B17: BSAI | C17: 84,057 | D17: 71,618 | E17: 10,000 | F17: 10,684 | G17: 90,873 | H17: 77,349 | I17: 15,000 | J17: 8,286 | K17: 94,445 | L17: 80,389 | N17: 97,944 | O17: 83,389
A18: Kamchatka flounder | B18: BSAI | C18: 11,495 | D18: 9,708 | E18: 6,800 | F18: 7,442 | G18: 10,630 | H18: 8,982 | I18: 8,982 | J18: 6,561 | K18: 10,903 | L18: 9,214 | N18: 11,115 | O18: 9,393
A19: Northern rock sole | B19: BSAI | C19: 157,300 | D19: 153,300 | E19: 47,100 | F19: 25,937 | G19: 145,180 | H19: 140,306 | I19: 54,500 | J19: 13,898 | K19: 214,084 | L19: 206,896 | N19: 280,621 | O19: 271,199
A20: Flathead sole | B20: BSAI | C20: 82,810 | D20: 68,134 | E20: 19,500 | F20: 9,392 | G20: 75,863 | H20: 62,567 | I20: 25,000 | J20: 9,898 | K20: 77,967 | L20: 64,288 | N20: 80,034 | O20: 65,988
A21: Alaska plaice | B21: BSAI | C21: 37,600 | D21: 31,600 | E21: 17,000 | F21: 20,078 | G21: 37,924 | H21: 31,657 | I21: 24,500 | J21: 15,653 | K21: 39,305 | L21: 32,697 | N21: 39,685 | O21: 32,998
A22: Other flatfish | B22: BSAI | C22: 21,824 | D22: 16,368 | E22: 4,000 | F22: 4,174 | G22: 22,919 | H22: 17,189 | I22: 6,500 | J22: 2,510 | K22: 22,919 | L22: 17,189 | N22: 22,919 | O22: 17,189
A23: Pacific Ocean perch | B23: BSAI | C23: 58,956 | D23: 48,846 | E23: 42,875 | F23: =SUM(F24:F27) -> 40,417 | G23: 44,376 | H23: 37,173 | I23: 35,899 | J23: 32,112 | K23: 42,605 | L23: 35,688 | N23: 40,977 | O23: 34,322
B24: BS | C24: n/a | D24: 14,168 | E24: 14,168 | F24: 11,944 | G24: n/a | H24: 10,782 | I24: 10,782 | J24: 8,679 | L24: 10,352 | O24: 9,956
B25: EAI | C25: n/a | D25: 11,063 | E25: 10,613 | F25: 10,621 | G25: n/a | H25: 8,419 | I25: 8,419 | J25: 7,442 | L25: 8,083 | O25: 7,774
B26: CAI | C26: n/a | D26: 8,144 | E26: 8,094 | F26: 7,966 | G26: n/a | H26: 6,198 | I26: 6,198 | J26: 5,885 | L26: 5,950 | O26: 5,722
B27: WAI | C27: n/a | D27: 15,471 | E27: 10,000 | F27: 9,886 | G27: n/a | H27: 11,774 | I27: 10,500 | J27: 10,107 | L27: 11,303 | O27: 10,870
A28: Northern rockfish | B28: BSAI | C28: 19,751 | D28: 16,243 | E28: 10,000 | F28: 8,443 | G28: 18,917 | H28: 15,557 | I28: 13,000 | J28: 6,045 | K28: 23,420 | L28: 19,217 | N28: 22,594 | O28: 18,538
A29: Blackspotted/Rougheye Rockfish | B29: BSAI | C29: 861 | D29: 708 | E29: 349 | F29: =SUM(F30:F31) -> 517 | G29: 576 | H29: 482 | I29: 482 | J29: 513 | K29: 598 | L29: 503 | N29: 615 | O29: 517
B30: EBS/EAI | C30: n/a | D30: 444 | E30: 85 | F30: 149 | G30: n/a | H30: 313 | I30: 313 | J30: 211 | L30: 326 | O30: 334
B31: CAI/WAI | C31: n/a | D31: 264 | E31: 264 | F31: 368 | G31: n/a | H31: 169 | I31: 169 | J31: 302 | L31: 177 | O31: 183
A32: Shortraker rockfish | B32: BSAI | C32: 722 | D32: 541 | E32: 375 | F32: 294 | G32: 722 | H32: 541 | I32: 500 | J32: 521 | K32: 722 | L32: 541 | N32: 722 | O32: 541
A33: Other rockfish | B33: BSAI | C33: 1,793 | D33: 1,344 | E33: 1,088 | F33: =SUM(F34+F35) -> 1,090 | G33: 1,751 | H33: 1,313 | I33: 916 | J33: 900 | K33: 1,751 | L33: 1,313 | N33: 1,751 | O33: 1,313
B34: BS | C34: n/a | D34: 956 | E34: 700 | F34: 352 | G34: n/a | H34: 919 | I34: 522 | J34: 332 | K34: n/a | L34: 919 | N34: n/a | O34: 919
B35: AI | C35: n/a | D35: 388 | E35: 388 | F35: 739 | G35: n/a | H35: 394 | I35: 394 | J35: 568 | K35: n/a | L35: 394 | N35: n/a | O35: 394
A36: Atka mackerel | B36: BSAI | C36: 81,200 | D36: 70,100 | E36: 59,305 | F36: =SUM(F37:F39) -> 58,884 | G36: 85,580 | H36: 73,590 | I36: 62,257 | J36: 58,571 | K36: 91,870 | L36: 78,510 | N36: 84,440 | O36: 71,990
B37: EAI/BS | C37: n/a | D37: 24,535 | E37: 24,535 | F37: 24,291 | G37: n/a | H37: 25,760 | I37: 25,760 | J37: 22,598 | L37: 27,260 | O37: 25,000
B38: CAI | C38: n/a | D38: 14,721 | E38: 14,721 | F38: 14,596 | G38: n/a | H38: 15,450 | I38: 15,450 | J38: 15,272 | L38: 16,880 | O38: 15,470
B39: WAI | C39: n/a | D39: 30,844 | E39: 20,049 | F39: 19,997 | G39: n/a | H39: 32,380 | I39: 21,047 | J39: 20,701 | L39: 34,370 | O39: 31,520
A40: Skates | B40: BSAI | C40: 49,792 | D40: 41,543 | E40: 16,313 | F40: 19,128 | G40: 49,297 | H40: 41,257 | I40: 18,000 | J40: 18,729 | K40: 47,790 | L40: 39,958 | N40: 46,475 | O40: 38,824
A41: Sharks | B41: BSAI | C41: 689 | D41: 517 | E41: 150 | F41: 179 | G41: 689 | H41: 517 | I41: 200 | J41: 354 | K41: 689 | L41: 517 | N41: 689 | O41: 517
A42: Octopuses | B42: BSAI | C42: 4,769 | D42: 3,576 | E42: 275 | F42: 691 | G42: 4,769 | H42: 3,576 | I42: 700 | J42: 161 | K42: 4,769 | L42: 3,576 | N42: 4,769 | O42: 3,576
A43: Total | B43: BSAI | C43: =SUM(C5:C42) -> 5,516,565 | D43: =SUM(D5:D42)-D14-D23-D29-D33-D36 -> 3,221,718 | E43: =SUM(E5:E42)-E14-E23-E29-E33-E36 -> 1,994,700 | F43: =SUM(F5:F42)-F14-F23-F29-F33-F36 -> 1,869,382 | G43: =SUM(G5:G42) -> 3,945,315 | H43: =SUM(H5:H42)-H14-H23-H29-H33-H36-H10 -> 2,747,727 | I43: =SUM(I5:I42)-I14-I23-I29-I33-I36 -> 2,000,000 | J43: =SUM(J5:J42)-J14-J23-J29-J33-J36 -> 1,774,309 | K43: =SUM(K5:K42) -> 2,953,182 | L43: =SUM(L5:L42)-L14-L23-L29-L33-L36-L11-L12 -> 2,322,082 | N43: =SUM(N5:N42) -> 3,253,770 | O43: =SUM(O5:O42)-O14-O23-O29-O33-O36-O12-O11 -> 2,564,366
A44: Sources: 2020 OFLs, ABCs, and TACs and 2021 OFLs and ABCs are from harvest specifications adopted by the Council in December 2019 and December 2020, respectively; 2020 catches through December 31, and 2021 catches through November 6, 2021 from AKR Catch Accounting.
A46: Reallocations over specified TAC
A47: 2021 | B47: From | C47: To | D47: Difference | E47: Reason
A48: Pollock - BS | B48: 1,375,000 | C48: 1,387,600 | D48: =SUM(C48-B48) -> 12,600 | E48: AI to BS
A49: Pollock - AI | B49: 19,000 | C49: 6,400 | D49: =SUM(C49-B49) -> (12,600) | E49: AI to BS
A50: Shortraker | B50: 500 | C50: 541 | D50: 41 | E50: Reserve
A51: Skates | B51: 18,000 | C51: 20,000 | D51: =SUM(C51-B51) -> 2,000 | E51: Reserve
A52: Sharks | B52: 200 | C52: 517 | D52: 317 | E52: Reserve
A54: 2020 | B54: From | C54: To | D54: Difference | E54: Reason
A55: Pollock - BS | B55: 1,425,000 | C55: 1,436,901 | D55: =SUM(C55)-B55 -> 11,901 | E55: AI to BS
A56: Pollock - AI | B56: 19,000 | C56: 7,099 | D56: =SUM(C56)-B56 -> (11,901) | E56: AI to BS
A57: AI Greenland turbot | B57: 175 | C57: 699 | D57: 524 | E57: Reserve
A58: Alaska plaice | B58: 17,000 | C58: 20,050 | D58: 3,050 | E58: Reserve
A59: Other flatfish | B59: 4,000 | C59: 4,121 | D59: 121 | E59: Reserve
A60: Blackspotted/rougeye BS/EAI | B60: 85 | C60: 132 | D60: 47 | E60: Reserve
A61: Skates | B61: 16,314 | C61: 17,206 | D61: 892 | E61: Reserve
A62: Octopus | B62: 275 | C62: 684 | D62: 409 | E62: Reserve

Sheet Notes
A6: Input to facilitate Plan Team discussions of appropriate proposed OFLs and ABCs at September plan team meetings.
A7: Spreadsheets for the BSAI and GOA with information on 2019 and 2020 OFLs, ABCs and TACs as adopted by published in the Federal Register in February 2018 and March 2019.
A8: To be completed in September with actual catches through December 31, 2019 and September 8, 2020 as published by SF to web site.
A12: Comments: Mary Furuness, 907-586-7447, Mary.Furuness@noaa.gov
